bitfinex/quotes_SOLUSD_20230101
["timestamp","ask_amount","ask_price","bid_price","bid_amount"]
[1672570543390,20.0,9.8145,9.8086,40.0]
[1672570543581,20.0,9.8145,9.8088,306.0]
[1672570544967,20.0,9.8145,9.8091,40.0]
[1672570545790,20.0,9.8145,9.8091,346.0]
[1672570546951,20.0,9.8145,9.8091,40.0]
[1672570548543,20.0,9.8145,9.8094,40.0]
[1672570551375,20.0,9.8145,9.8096,306.0]
[1672570551572,20.0,9.8145,9.8097,40.0]
[1672570552517,20.0,9.8155,9.8097,40.0]
[1672570558305,20.0,9.8155,9.8096,306.0]
[1672570559362,33.55667933,9.8155,9.8096,306.0]
[1672570559770,33.55667933,9.8155,9.8098,306.0]
[1672570560732,33.55667933,9.8155,9.8096,306.0]
[1672570560938,33.55667933,9.8155,9.8098,306.0]
[1672570562099,33.55667933,9.8155,9.8096,306.0]
[1672570562310,33.55667933,9.8155,9.8097,382.53]
[1672570571234,33.55667933,9.8155,9.8097,76.53]
[1672570571442,169.85065605,9.8154,9.8078,76.55]
[1672570571654,20.0,9.8153,9.8078,76.55]
[1672570571859,40.0,9.8152,9.8078,76.55]
[1672570572083,20.0,9.8151,9.8078,76.55]
[1672570572270,40.0,9.815,9.8078,76.55]
[1672570572484,109.59591939,9.815,9.8078,76.55]
[1672570572707,109.59591939,9.815,9.8071,306.0]
[1672570572708,89.59591939,9.8149,9.8071,306.0]
[1672570572917,103.15259872,9.8149,9.8073,306.0]
[1672570573255,83.15259872,9.8148,9.8075,306.0]
[1672570573463,20.0,9.8147,9.8077,306.0]
[1672570573657,33.55667933,9.8147,9.8078,76.55]
[1672570573983,13.55667933,9.8146,9.8078,76.55]
[1672570574174,20.0,9.8145,9.8078,76.55]
[1672570574605,13.55667933,9.8144,9.8078,76.55]
[1672570574819,20.0,9.8143,9.8078,76.55]
[1672570575029,20.0,9.8143,9.807,76.56]
[1672570575238,53.55667933,9.8142,9.8067,76.56]
[1672570575445,40.0,9.814,9.8067,76.56]
[1672570575657,40.0,9.814,9.8058,76.56]
[1672570575658,40.0,9.8138,9.8058,76.56]
[1672570575866,40.0,9.8138,9.7973,24.1922]
[1672570575867,1070.283535,9.8137,9.8026,306.0]
[1672570576084,1052.35795412,9.8136,9.8027,76.59]
[1672570576294,40.0,9.8134,9.8027,76.59]
[1672570576500,40.0,9.8132,9.8027,76.59]
[1672570576716,1117.09589185,9.8131,9.8019,306.0]
[1672570576934,1063.09093077,9.813,9.8021,306.0]
[1672570577118,40.0,9.8128,9.8023,306.0]
[1672570577323,1122.72621421,9.8127,9.8025,306.0]
[1672570577555,40.0,9.8125,9.8027,306.0]
[1672570577752,40.0,9.8123,9.8029,306.0]
[1672570577970,40.0,9.8121,9.8031,306.0]
[1672570578184,1173.3460533,9.812,9.8033,306.0]
[1672570578380,1173.3460533,9.812,9.8035,306.0]
[1672570578381,40.0,9.8118,9.8035,306.0]
[1672570578598,40.0,9.8116,9.8036,76.58]
[1672570578808,40.0,9.8114,9.8036,76.58]
[1672570579123,40.0,9.8112,9.8018,76.6]
[1672570579321,40.0,9.811,9.8018,76.6]
[1672570579743,40.0,9.8108,9.8018,76.6]
[1672570579969,40.0,9.8106,9.8018,76.6]
[1672570580186,40.0,9.8106,9.8019,306.0]
[1672570580398,40.0,9.8106,9.7974,40.0]
[1672570580399,40.0,9.8104,9.8021,306.0]
[1672570580590,40.0,9.8102,9.8023,306.0]
[1672570580799,40.0,9.8102,9.8025,306.0]
[1672570581023,40.0,9.81,9.8027,306.0]
[1672570581338,40.0,9.8098,9.8029,306.0]
[1672570581535,40.0,9.8096,9.8031,306.0]
[1672570581746,40.0,9.8096,9.8032,76.59]
[1672570581955,40.0,9.8094,9.8018,76.6]
[1672570582382,40.0,9.8092,9.8018,76.6]
[1672570583219,1005.98617882,9.8093,9.8018,76.6]
[1672570583442,40.0,9.8092,9.8018,76.6]
[1672570583845,40.0,9.8092,9.8019,306.0]
[1672570584052,40.0,9.8092,9.8021,306.0]
[1672570584280,40.0,9.8092,9.802,76.59]
[1672570584281,40.0,9.809,9.8023,306.0]
[1672570584491,1039.44581091,9.8089,9.8025,306.0]
[1672570584703,1039.44581091,9.8089,9.8027,306.0]
[1672570584903,1039.44581091,9.8089,9.8026,76.59]
[1672570584904,40.0,9.8088,9.8029,306.0]
[1672570585115,40.0,9.8088,9.803,76.59]
[1672570585537,40.0,9.8088,9.8027,76.59]
[1672570585750,1039.44581091,9.8089,9.8027,76.59]
[1672570586173,1039.44581091,9.8089,9.8028,24.4643]
[1672570586368,1039.44581091,9.8089,9.803,306.0]
[1672570586580,1039.44581091,9.8089,9.8032,306.0]
[1672570586801,1039.44581091,9.8089,9.7974,40.0]
[1672570586802,1039.44581091,9.8089,9.8034,306.0]
[1672570587013,1039.44581091,9.8089,9.8035,76.58]
[1672570587334,1039.44581091,9.8089,9.8032,306.0]
[1672570587543,1039.44581091,9.8089,9.8034,306.0]
[1672570587740,1039.44581091,9.8089,9.8036,306.0]
[1672570587953,1039.44581091,9.8089,9.8037,76.58]
[1672570589012,1116.48625428,9.8089,9.8032,76.59]
[1672570589204,965.90940211,9.8088,9.8032,76.59]
[1672570590684,965.90940211,9.8088,9.8049,40.0]
[1672570591218,965.90940211,9.8088,9.8051,306.0]
[1672570592360,965.90940211,9.8088,9.8052,306.0]
[1672570593423,965.90940211,9.8088,9.8049,40.0]
[1672570597523,921.22315638,9.8118,9.8049,40.0]
[1672570597727,76.52,9.8117,9.8049,40.0]
[1672570598152,961.03544456,9.8116,9.8049,40.0]
[1672570598376,76.52,9.8115,9.8049,40.0]
[1672570606883,76.52,9.8117,9.8049,40.0]
[1672570607298,57.65323322,9.8116,9.8049,40.0]
[1672570607512,76.52,9.8115,9.8049,40.0]
[1672570608868,206.87059348,9.8115,9.8049,40.0]
[1672570612646,88.41569558,9.8114,9.8049,40.0]
[1672570612862,76.52,9.8113,9.8049,40.0]
[1672570613070,206.87059348,9.8113,9.8049,40.0]
[1672570613280,161.11305584,9.8112,9.8049,40.0]
[1672570613491,76.52,9.8111,9.8049,40.0]
[1672570613702,164.93569558,9.8111,9.8049,40.0]
[1672570613913,88.41569558,9.811,9.8049,40.0]
[1672570614123,76.53,9.8109,9.8049,40.0]
[1672570614437,88.41569558,9.8108,9.8049,40.0]
[1672570614665,76.53,9.8107,9.8049,40.0]
[1672570615078,88.41569558,9.8106,9.8049,40.0]
[1672570615288,76.53,9.8105,9.8049,40.0]
[1672570615613,88.41569558,9.8104,9.8049,40.0]
[1672570620546,88.41569558,9.8104,9.8048,306.0]
[1672570620547,971.77557796,9.8103,9.8048,306.0]
[1672570620970,88.41569558,9.8102,9.8048,306.0]
[1672570622011,88.41569558,9.8102,9.8049,29.9811]
[1672570642840,88.41569558,9.8102,9.805,40.0]
[1672570643165,971.77557796,9.8103,9.805,346.0]
[1672570652288,76.53,9.8102,9.805,346.0]
[1672570652509,971.77557796,9.8103,9.805,346.0]
[1672570681323,970.77557796,9.8103,9.805,346.0]
[1672570691528,57.65323322,9.8113,9.805,346.0]
[1672570691742,76.52,9.8119,9.805,346.0]
[1672570691953,20.0,9.8118,9.805,346.0]
[1672570692573,20.0,9.8127,9.805,346.0]
[1672570692784,76.51,9.8126,9.805,346.0]
[1672570693109,20.0,9.8125,9.805,346.0]
[1672570693312,76.51,9.8124,9.805,346.0]
[1672570693522,20.0,9.8123,9.805,422.57]
[1672570694252,20.0,9.8127,9.805,422.57]
[1672570694470,76.51,9.8126,9.805,422.57]
[1672570694674,20.0,9.8125,9.805,422.57]
[1672570695320,20.0,9.8127,9.805,422.57]
[1672570695522,76.51,9.8126,9.805,422.57]
[1672570695736,20.0,9.8125,9.805,422.57]
[1672570695951,76.51,9.8128,9.805,422.57]
[1672570696143,20.0,9.8127,9.805,422.57]
[1672570697193,20.0,9.8128,9.805,422.57]
[1672570700880,100.13512891,9.8128,9.805,382.57]
[1672570701087,40.0,9.8127,9.805,382.57]
[1672570701296,96.51,9.8126,9.805,382.57]
[1672570701510,247.84960052,9.8126,9.805,382.57]
[1672570701739,151.33960052,9.8125,9.805,382.57]
[1672570702049,171.33960052,9.8124,9.805,382.57]
[1672570702366,171.33960052,9.8123,9.805,382.57]
[1672570702577,151.33960052,9.8123,9.805,382.57]
[1672570702798,77.64779228,9.8122,9.805,382.57]
[1672570703009,157.78292119,9.8122,9.805,382.57]
[1672570703198,137.78292119,9.8121,9.805,382.57]
[1672570703413,20.0,9.812,9.805,382.57]
[1672570703619,77.64779228,9.812,9.805,382.57]
[1672570704888,157.78292119,9.812,9.8051,40.0]
[1672570705098,157.78292119,9.812,9.8053,306.0]
[1672570705308,157.78292119,9.812,9.8055,306.0]
[1672570705846,57.64779228,9.8119,9.8055,306.0]
[1672570706058,20.0,9.8118,9.8055,306.0]
[1672570706468,20.0,9.8118,9.8053,306.0]
[1672570706795,20.0,9.8118,9.8055,306.0]
[1672570706988,20.0,9.8118,9.8057,306.0]
[1672570708142,20.0,9.8118,9.8053,306.0]
[1672570708475,20.0,9.8118,9.8055,306.0]
[1672570708782,20.0,9.8118,9.8057,306.0]
[1672570708997,20.0,9.8118,9.8051,40.0]
[1672570708998,210.48028145,9.8117,9.8059,306.0]
[1672570710053,210.48028145,9.8117,9.8053,306.0]
[1672570710360,210.48028145,9.8117,9.8055,306.0]
[1672570710552,210.48028145,9.8117,9.8057,306.0]
[1672570710763,210.48028145,9.8117,9.8059,306.0]
[1672570711825,210.48028145,9.8117,9.8054,40.0]
[1672570712047,210.48028145,9.8117,9.8057,40.0]
[1672570712248,210.48028145,9.8117,9.8058,306.0]
[1672570713291,210.48028145,9.8117,9.8057,40.0]
[1672570713928,137.78292119,9.8116,9.8057,40.0]
[1672570715740,264.03696078,9.8115,9.8035,306.0]
[1672570715950,40.0,9.8113,9.8035,306.0]
[1672570716261,76.52,9.8112,9.8035,306.0]
[1672570716482,40.0,9.8111,9.8036,23.3231]
[1672570716678,40.0,9.8109,9.8036,23.3231]
[1672570716889,40.0,9.8107,9.8036,23.3231]
[1672570717100,40.0,9.8105,9.8037,23.3231]
[1672570717311,76.53,9.8104,9.8037,23.3231]
[1672570717531,40.0,9.8103,9.8037,23.3231]
[1672570717846,76.53,9.8102,9.8038,23.3231]
[1672570718050,300.56696078,9.8102,9.8038,23.3231]
[1672570718251,224.03696078,9.8101,9.8038,23.3231]
[1672570718458,76.53,9.81,9.8038,23.3231]
[1672570718672,300.56696078,9.81,9.8038,23.3231]
[1672570718999,224.03696078,9.8099,9.8038,23.3231]
[1672570719204,76.53,9.8098,9.8038,23.3231]
[1672570719420,300.56696078,9.8098,9.8038,23.3231]
[1672570719642,224.03696078,9.8097,9.8038,23.3231]
[1672570719835,76.54,9.8096,9.8038,23.3231]
[1672570720150,170.23180824,9.8096,9.8038,23.3231]
[1672570720460,130.34515254,9.8095,9.8048,306.0]
[1672570720676,57.64779228,9.8095,9.8048,306.0]
[1672570722136,57.64779228,9.8095,9.805,306.0]
[1672570722338,57.64779228,9.8095,9.8052,346.0]
[1672570722566,57.64779228,9.8095,9.8054,306.0]
[1672570722976,13.55667933,9.8122,9.8054,306.0]
[1672570723188,57.64779228,9.8118,9.8054,306.0]
[1672570723411,57.64779228,9.8118,9.8055,40.0]
[1672570740010,20.0,9.8121,9.8055,40.0]
[1672570740217,52.65249895,9.8125,9.8055,40.0]
[1672570740430,20.0,9.8124,9.8055,40.0]
[1672570740639,103.05568634,9.8124,9.8055,40.0]
[1672570740957,135.70818529,9.8123,9.8055,40.0]
[1672570741152,20.0,9.8122,9.8055,40.0]
[1672570741364,89.49900701,9.8122,9.8055,40.0]
[1672570741797,13.55667933,9.8121,9.8055,39.69]
[1672570741994,20.0,9.812,9.8055,39.69]
[1672570742421,33.55667933,9.812,9.8055,39.69]
[1672570743682,76.52,9.8119,9.8055,39.69]
[1672570743882,20.0,9.8118,9.8055,39.69]
[1672570744429,20.0,9.8119,9.8055,39.69]
[1672570747579,20.0,9.8119,9.8054,306.0]
[1672570748740,69.49900701,9.8118,9.8054,306.0]
[1672570749056,69.49900701,9.8118,9.8056,306.0]
[1672570749881,69.49900701,9.8118,9.8055,306.0]
[1672570750111,69.49900701,9.8118,9.8057,306.0]
[1672570751159,69.49900701,9.8118,9.8055,306.0]
[1672570751377,69.49900701,9.8118,9.8057,306.0]
[1672570751588,1024.84933109,9.8121,9.8059,306.0]
[1672570751774,1024.84933109,9.8121,9.8056,40.0]
[1672570751775,1084.51050159,9.8198,9.8061,306.0]
[1672570751985,1084.51050159,9.8198,9.8063,306.0]
[1672570752314,1084.51050159,9.8198,9.8065,306.0]
[1672570752508,76.46,9.8197,9.8067,306.0]
[1672570752719,76.46,9.8197,9.8069,346.0]
[1672570752928,76.46,9.8197,9.8071,306.0]
[1672570753139,76.46,9.8197,9.8073,306.0]
[1672570753360,76.46,9.8197,9.8075,306.0]
[1672570753576,13.55667933,9.8196,9.8078,40.0]
[1672570753768,13.55667933,9.8196,9.808,306.0]
[1672570753980,13.55667933,9.8196,9.8083,40.0]
[1672570754184,13.55667933,9.8196,9.8085,306.0]
[1672570754395,13.55667933,9.8196,9.8087,306.0]
[1672570754630,13.55667933,9.8196,9.809,40.0]
[1672570754834,13.55667933,9.8196,9.8092,306.0]
[1672570755045,13.55667933,9.8196,9.8094,306.0]
[1672570755245,13.55667933,9.8196,9.8096,306.0]
[1672570755449,13.55667933,9.8196,9.8098,306.0]
[1672570755664,13.55667933,9.8196,9.81,306.0]
[1672570755868,13.55667933,9.8196,9.8102,306.0]
[1672570756097,13.55667933,9.8196,9.8104,306.0]
[1672570756308,13.55667933,9.8196,9.8093,40.0]
[1672570756309,13.55667933,9.8196,9.8106,306.0]
[1672570756499,13.55667933,9.8196,9.8102,165.6452]
[1672570756500,13.55667933,9.8196,9.8109,40.0]
[1672570756713,13.55667933,9.8196,9.8111,306.0]
[1672570756943,13.55667933,9.8196,9.8114,40.0]
[1672570757130,13.55667933,9.8196,9.8116,306.0]
[1672570757344,13.55667933,9.8196,9.8118,306.0]
[1672570757576,13.55667933,9.8196,9.812,306.0]
[1672570757788,13.55667933,9.8196,9.8122,306.0]
[1672570757995,13.55667933,9.8196,9.8124,306.0]
[1672570758199,13.55667933,9.8196,9.8126,306.0]
[1672570758818,13.55667933,9.8196,9.8128,306.0]
[1672570759994,13.55667933,9.8196,9.812,40.0]
[1672570760179,13.55667933,9.8196,9.8122,306.0]
[1672570760393,13.55667933,9.8196,9.8124,306.0]
[1672570760600,13.55667933,9.8196,9.8126,306.0]
[1672570760826,13.55667933,9.8196,9.8128,306.0]
[1672570761020,13.55667933,9.8196,9.813,306.0]
[1672570761233,13.55667933,9.8196,9.8132,306.0]
[1672570761442,13.55667933,9.8196,9.8133,382.51]
[1672570762283,1084.51050159,9.8198,9.8133,382.51]
[1672570769121,1084.51050159,9.8198,9.8124,306.0]
[1672570769344,1084.51050159,9.8198,9.8126,306.0]
[1672570769556,1084.51050159,9.8198,9.8128,306.0]
[1672570769764,1084.51050159,9.8198,9.813,306.0]
[1672570769983,1084.51050159,9.8198,9.8132,306.0]
[1672570771126,1084.51050159,9.8198,9.8127,40.0]
[1672570771337,1084.51050159,9.8198,9.813,40.0]
[1672570771529,1084.51050159,9.8198,9.8132,306.0]
[1672570771740,1084.51050159,9.8198,9.8133,40.0]
[1672570778163,76.46,9.8197,9.8133,40.0]
[1672570778798,76.46,9.8197,9.8128,23.6592]
[1672570779843,76.46,9.8198,9.8128,23.6592]
[1672570780049,13.55667933,9.8197,9.8128,23.6592]
[1672570780260,76.46,9.8196,9.8128,23.6592]
[1672570790059,13.55667933,9.8222,9.8128,23.6592]
[1672570790269,40.0,9.822,9.8128,23.6592]
[1672570790480,40.0,9.8218,9.8128,23.6592]
[1672570790695,76.44,9.8217,9.8128,23.6592]
[1672570790899,40.0,9.8216,9.813,306.0]
[1672570791107,40.0,9.8214,9.8132,306.0]
[1672570791318,76.44,9.8213,9.8132,306.0]
[1672570791646,40.0,9.8212,9.8132,306.0]
[1672570791849,76.45,9.8211,9.8133,24.053]
[1672570792039,40.0,9.8214,9.8133,24.053]
[1672570792255,76.44,9.8213,9.8133,24.053]
[1672570792465,40.0,9.8214,9.8134,24.053]
[1672570792678,40.0,9.8212,9.8134,24.053]
[1672570792897,76.45,9.8211,9.8134,24.053]
[1672570793106,76.45,9.8211,9.8135,22.89]
[1672570793827,76.44,9.8214,9.8136,22.89]
[1672570794673,13.55667933,9.8213,9.8138,306.0]
[1672570794891,153.27508766,9.8214,9.814,306.0]
[1672570795422,76.44,9.8213,9.814,306.0]
[1672570795939,76.44,9.8213,9.8139,22.89]
[1672570796777,229.71508766,9.8213,9.8139,22.89]
[1672570803407,153.27508766,9.8218,9.8141,306.0]
[1672570803740,76.44,9.822,9.8144,40.0]
[1672570804047,20.0,9.8219,9.8144,40.0]
[1672570804258,20.0,9.8219,9.8145,22.5389]
[1672570804658,20.0,9.8222,9.8145,22.5389]
[1672570804871,76.44,9.8221,9.8145,22.5389]
[1672570805188,20.0,9.822,9.8145,22.5389]
[1672570805399,20.0,9.822,9.8146,22.5389]
[1672570805923,22.5734,9.8231,9.8146,22.5389]
[1672570805924,20.0,9.8225,9.8149,40.0]
[1672570806143,20.0,9.8229,9.8149,40.0]
[1672570806341,76.43,9.8228,9.8149,40.0]
[1672570806879,20.0,9.8227,9.815,23.6002]
[1672570807079,76.43,9.8226,9.815,23.6002]
[1672570807289,20.0,9.8225,9.8151,23.6002]
[1672570807932,20.0,9.8229,9.8151,23.6002]
[1672570808125,76.43,9.8228,9.8151,23.6002]
[1672570808338,20.0,9.8227,9.8151,23.6002]
[1672570808550,76.43,9.8226,9.8151,23.6002]
[1672570808761,20.0,9.8225,9.8151,23.6002]
[1672570808964,20.0,9.8225,9.8154,40.0]
[1672570809389,20.0,9.823,9.8154,40.0]
[1672570810333,20.0,9.823,9.8155,306.0]
[1672570810542,20.0,9.823,9.8156,40.0]
[1672570811278,20.0,9.823,9.8156,346.0]
[1672570813191,20.0,9.823,9.8158,306.0]
[1672570813403,20.0,9.823,9.8159,40.0]
[1672570814245,20.0,9.823,9.8162,40.0]
[1672570814457,20.0,9.823,9.8165,40.0]
[1672570816022,13.55667933,9.827,9.8167,306.0]
[1672570816250,24.3168,9.8329,9.8169,306.0]
[1672570816469,40.0,9.8307,9.8172,40.0]
[1672570816779,161.17223601,9.8306,9.8174,306.0]
[1672570816988,153.27508766,9.8294,9.8174,306.0]
[1672570817299,40.0,9.8292,9.8174,306.0]
[1672570817619,40.0,9.829,9.8151,306.0]
[1672570817807,40.0,9.8288,9.8154,40.0]
[1672570818025,40.0,9.8288,9.8156,306.0]
[1672570818026,96.39,9.8287,9.8156,306.0]
[1672570818233,40.0,9.8286,9.8158,306.0]
[1672570818449,40.0,9.8284,9.816,306.0]
[1672570818652,40.0,9.8282,9.8162,306.0]
[1672570818863,96.39,9.8281,9.8164,306.0]
[1672570819068,286.69873892,9.8281,9.8166,306.0]
[1672570819282,40.0,9.8279,9.8168,306.0]
[1672570819497,96.39,9.8278,9.817,306.0]
[1672570819713,344.20195481,9.8278,9.817,306.0]
[1672570819931,240.00565481,9.8277,9.817,306.0]
[1672570820136,96.4,9.8276,9.817,306.0]
[1672570820329,320.93565481,9.8276,9.8159,306.0]
[1672570820540,247.81195481,9.8275,9.8162,40.0]
[1672570820749,96.4,9.8274,9.8164,306.0]
[1672570821070,122.3054519,9.8273,9.8167,40.0]
[1672570821284,96.4,9.8272,9.8169,306.0]
[1672570821493,96.4,9.8272,9.8172,40.0]
[1672570821494,282.84897548,9.8272,9.8172,40.0]
[1672570821712,186.44897548,9.8271,9.8175,40.0]
[1672570821913,96.4,9.827,9.8177,306.0]
[1672570822124,96.4,9.827,9.8179,306.0]
[1672570822125,282.84897548,9.827,9.8179,306.0]
[1672570822442,186.44897548,9.8269,9.8181,306.0]
[1672570822640,96.4,9.8268,9.8181,306.0]
[1672570822855,40.0,9.8267,9.8181,306.0]
[1672570823070,40.0,9.8265,9.8181,306.0]
[1672570823301,96.4,9.8264,9.8169,306.0]
[1672570823486,178.70681589,9.8264,9.8169,306.0]
[1672570823697,40.0,9.8262,9.8171,306.0]
[1672570823911,40.0,9.8262,9.8167,40.0]
[1672570823912,96.41,9.8261,9.8173,306.0]
[1672570824126,40.0,9.826,9.8173,306.0]
[1672570824338,40.0,9.8258,9.8173,306.0]
[1672570824547,96.41,9.8257,9.8175,306.0]
[1672570824755,57.50321589,9.8257,9.8177,306.0]
[1672570824972,20.0,9.8256,9.8179,306.0]
[1672570825180,77.50321589,9.8256,9.8179,306.0]
[1672570825388,57.50321589,9.8255,9.8179,306.0]
[1672570825604,20.0,9.8254,9.8179,306.0]
[1672570826022,57.50321589,9.8253,9.818,306.0]
[1672570826230,20.0,9.8252,9.818,306.0]
[1672570826660,20.0,9.8252,9.8182,306.0]
[1672570826868,77.50321589,9.8252,9.8182,306.0]
[1672570827062,77.50321589,9.8252,9.8183,76.47]
[1672570827275,77.50321589,9.8252,9.8184,306.0]
[1672570827481,77.50321589,9.8252,9.8169,306.0]
[1672570827714,77.50321589,9.8252,9.8172,40.0]
[1672570827911,77.50321589,9.8252,9.8174,306.0]
[1672570828116,77.50321589,9.8252,9.8176,306.0]
[1672570828324,77.50321589,9.8252,9.8178,306.0]
[1672570829184,77.50321589,9.8252,9.818,306.0]
[1672570829402,77.50321589,9.8252,9.8182,306.0]
[1672570831485,77.50321589,9.8252,9.8174,306.0]
[1672570831700,77.50321589,9.8252,9.8175,76.47]
[1672570832643,77.50321589,9.8252,9.8173,76.48]
[1672570833180,77.50321589,9.8252,9.8174,306.0]
[1672570833386,77.50321589,9.8252,9.8172,40.0]
[1672570833387,20.0,9.8252,9.8176,306.0]
[1672570833701,20.0,9.8257,9.8178,306.0]
[1672570833896,64.14352358,9.8251,9.818,306.0]
[1672570834102,20.0,9.825,9.8183,40.0]
[1672570834336,20.0,9.825,9.8185,306.0]
[1672570834337,77.50321589,9.825,9.8185,306.0]
[1672570834646,57.50321589,9.8249,9.8187,306.0]
[1672570834860,20.0,9.8248,9.8187,306.0]
[1672570835185,57.50321589,9.8247,9.8188,40.0]
[1672570835395,20.0,9.8246,9.8187,306.0]
[1672570835602,20.0,9.8246,9.8185,306.0]
[1672570835822,57.50321589,9.8245,9.8186,76.47]
[1672570836013,20.0,9.8244,9.8185,306.0]
[1672570836225,20.0,9.8244,9.8186,40.0]
[1672570836550,77.50321589,9.8244,9.8186,40.0]
[1672570841279,20.0,9.8244,9.8186,40.0]
[1672570841594,20.0,9.8257,9.8186,40.0]
[1672570842107,57.50321589,9.8256,9.8186,40.0]
[1672570842318,20.0,9.8255,9.8186,40.0]
[1672570842742,57.50321589,9.8254,9.8186,40.0]
[1672570842956,20.0,9.8253,9.8186,40.0]
[1672570843470,57.50321589,9.8252,9.8186,40.0]
[1672570843683,20.0,9.8251,9.8186,40.0]
[1672570844108,57.50321589,9.825,9.8186,40.0]
[1672570844431,20.0,9.8249,9.8186,40.0]
[1672570844834,57.50321589,9.8248,9.8186,40.0]
[1672570845044,20.0,9.8247,9.8186,40.0]
[1672570845471,57.50321589,9.8246,9.8186,40.0]
[1672570845693,20.0,9.8245,9.8186,40.0]
[1672570846103,57.50321589,9.8244,9.8186,40.0]
[1672570846427,20.0,9.8243,9.8186,40.0]
[1672570846750,20.0,9.8243,9.8188,306.0]
[1672570847898,20.0,9.8243,9.819,306.0]
[1672570848422,77.50321589,9.8243,9.819,306.0]
[1672570848850,77.50321589,9.8243,9.818,306.0]
[1672570849041,77.50321589,9.8243,9.8182,306.0]
[1672570849991,77.50321589,9.8243,9.818,306.0]
[1672570850191,40.0,9.8242,9.8158,76.49]
[1672570850402,40.0,9.8242,9.8142,306.0]
[1672570850403,20.0,9.8241,9.8144,112.3779]
[1672570850609,40.0,9.824,9.8144,112.3779]
[1672570850835,40.0,9.8238,9.8151,76.49]
[1672570851056,40.0,9.8236,9.8151,76.49]
[1672570851455,79.8146075,9.8235,9.8152,306.0]
[1672570851667,198.14452423,9.8235,9.8153,76.49]
[1672570851894,40.0,9.8233,9.8153,76.49]
[1672570852094,20.0,9.8232,9.8153,76.49]
[1672570852301,77.50321589,9.8232,9.8153,76.49]
[1672570852508,57.50321589,9.8231,9.8153,76.49]
[1672570852726,20.0,9.823,9.8152,306.0]
[1672570853052,57.50321589,9.8229,9.8153,76.49]
[1672570853244,20.0,9.8228,9.8153,76.49]
[1672570853569,57.50321589,9.8227,9.8153,76.49]
[1672570853781,20.0,9.8226,9.8151,382.49]
[1672570854187,57.50321589,9.8225,9.8151,382.49]
[1672570854397,20.0,9.8224,9.8151,382.49]
[1672570854822,20.0,9.8233,9.8151,382.49]
[1672570855364,57.50321589,9.8232,9.8151,382.49]
[1672570855886,20.0,9.8231,9.8151,382.49]
[1672570856308,57.50321589,9.823,9.8151,382.49]
[1672570856500,20.0,9.8229,9.8151,382.49]
[1672570856927,57.50321589,9.8228,9.8151,382.49]
[1672570857130,20.0,9.8227,9.8151,382.49]
[1672570857569,57.50321589,9.8226,9.8152,40.0]
[1672570857780,57.50321589,9.8226,9.8153,76.49]
[1672570857781,20.0,9.8225,9.8153,76.49]
[1672570858304,57.50321589,9.8224,9.8154,40.0]
[1672570858517,57.50321589,9.8224,9.8155,76.49]
[1672570858731,20.0,9.8223,9.8155,76.49]
[1672570859043,57.50321589,9.8222,9.8155,76.49]
[1672570859243,20.0,9.8221,9.8156,40.0]
[1672570859448,20.0,9.8221,9.8157,76.49]
[1672570859660,20.0,9.8221,9.8159,40.0]
[1672570859869,20.0,9.8221,9.8162,40.0]
[1672570860192,20.0,9.8221,9.8165,40.0]
[1672570860399,20.0,9.8221,9.8168,40.0]
[1672570860615,20.0,9.8221,9.817,306.0]
[1672570860819,20.0,9.8221,9.8171,422.48]
[1672570867115,76.37,9.8303,9.8171,422.48]
[1672570867346,22.6855,9.8326,9.8174,40.0]
[1672570867565,54.98988255,9.8287,9.8176,306.0]
[1672570867742,54.98988255,9.8287,9.8179,40.0]
[1672570868057,54.98988255,9.8287,9.8182,40.0]
[1672570868269,54.98988255,9.8287,9.8184,306.0]
[1672570868477,54.98988255,9.8287,9.8187,40.0]
[1672570868696,54.98988255,9.8287,9.8189,306.0]
[1672570868906,54.98988255,9.8287,9.8191,306.0]
[1672570869112,54.98988255,9.8287,9.8194,40.0]
[1672570869423,76.37,9.8306,9.8197,40.0]
[1672570869640,76.37,9.8306,9.82,40.0]
[1672570869854,60.82670084,9.8305,9.8202,306.0]
[1672570870069,76.37,9.8304,9.8204,306.0]
[1672570870284,76.37,9.8304,9.8207,40.0]
[1672570870471,60.82670084,9.8303,9.8209,306.0]
[1672570870791,76.38,9.8302,9.821,40.0]
[1672570871007,76.38,9.8302,9.8212,40.0]